fUST/lending_fUST_20250702
["ID","MTS","AMOUNT","RATE_DAILY","PERIOD"]
[369032952,1751440045136,-221.08,0.00016428,3]
[369032953,1751440045159,-646.1093265,0.00016428,3]
[369032968,1751440232203,-176.97496556,0.00016159,2]
[369032970,1751440232213,-17.1806735,0.00016428,3]
[369032972,1751440232223,-422.19838282,0.00016428,2]
[369032973,1751440232233,-160.0,0.00016433,2]
[369032975,1751440232243,-1200.0,0.00016436,2]
[369032977,1751440232253,-454.00185621,0.00016437,2]
[369032979,1751440232262,-444.85767074,0.00016437,2]
[369032981,1751440232272,-300.0,0.00016437,2]
[369032983,1751440232282,-300.0,0.00016437,2]
[369032985,1751440232291,-300.0,0.00016437,2]
[369032987,1751440232300,-1200.0,0.00016437,2]
[369032989,1751440232310,-300.0,0.00016437,2]
[369032990,1751440232320,-460.0,0.00016438,2]
[369032992,1751440232329,-460.0,0.00016438,2]
[369032993,1751440232339,-460.0,0.00016438,2]
[369032994,1751440232349,-460.0,0.00016438,2]
[369032995,1751440232359,-460.0,0.00016438,2]
[369032996,1751440232369,-453.07188305,0.00016438,2]
[369032997,1751440232379,-254.56665283,0.00016438,2]
[369032998,1751440232389,-442.01088159,0.00016438,2]
[369032999,1751440232399,-460.0,0.00016438,2]
[369033001,1751440232408,-460.0,0.00016438,2]
[369033003,1751440232418,-460.0,0.00016438,2]
[369033005,1751440232427,-460.0,0.00016438,2]
[369033007,1751440232436,-173.70950279,0.00016438,2]
[369033009,1751440232449,-99.88049721,0.00016438,2]
[369033011,1751440232458,-460.0,0.00016438,2]
[369033013,1751440232467,-164.67479484,0.00016438,2]
[369033067,1751440238229,-295.32520516,0.00016438,2]
[369033069,1751440238239,-460.0,0.00016438,2]
[369033071,1751440238249,-460.0,0.00016438,2]
[369033073,1751440238259,-460.0,0.00016438,2]
[369033075,1751440238268,-175.39936602,0.00016438,2]
[369033077,1751440238278,-460.0,0.00016438,2]
[369033079,1751440238287,-580.96430859,0.00016438,2]
[369033081,1751440238297,-460.0,0.00016438,2]
[369033083,1751440238306,-460.0,0.00016438,2]
[369033085,1751440238316,-460.0,0.00016438,2]
[369033087,1751440238325,-460.0,0.00016438,2]
[369033089,1751440238335,-226.12893388,0.00016438,2]
[369033092,1751440238346,-233.87106612,0.00016438,2]
[369033094,1751440238356,-460.0,0.00016438,2]
[369033096,1751440238365,-460.0,0.00016438,2]
[369033098,1751440238375,-254.64410293,0.00016438,2]
[369033100,1751440238387,-205.35589707,0.00016438,2]
[369033102,1751440238396,-468.34404128,0.00016438,2]
[369033104,1751440238407,-460.0,0.00016438,2]
[369033106,1751440238416,-460.0,0.00016438,2]
[369033125,1751440238582,-460.0,0.00016438,2]
[369033127,1751440238593,-460.0,0.00016438,2]
[369033129,1751440238603,-460.0,0.00016438,2]
[369033131,1751440238613,-227.84200679,0.00016438,2]
[369033134,1751440238623,-465.57555808,0.00016438,2]
[369033136,1751440238633,-460.0,0.00016438,2]
[369033138,1751440238643,-460.0,0.00016438,2]
[369033140,1751440238653,-460.0,0.00016438,2]
[369033142,1751440238662,-244.87495708,0.00016438,2]
[369033144,1751440238674,-215.12504292,0.00016438,2]
[369033146,1751440238684,-460.0,0.00016438,2]
[369033148,1751440238694,-216.28398277,0.00016438,2]
[369033150,1751440238705,-290.78139421,0.00016438,2]
[369033152,1751440238715,-465.40040219,0.00016438,2]
[369033154,1751440238725,-460.0,0.00016438,2]
[369033156,1751440238734,-220.6188473,0.00016438,2]
[369033158,1751440238743,-460.0,0.00016438,2]
[369033160,1751440238752,-460.0,0.00016438,2]
[369033162,1751440238762,-439.51006064,0.00016438,2]
[369033164,1751440238772,-460.0,0.00016438,2]
[369033166,1751440238781,-460.0,0.00016438,2]
[369033168,1751440238791,-503.64734181,0.00016438,2]
[369033170,1751440238801,-460.0,0.00016438,2]
[369033172,1751440238810,-460.0,0.00016438,2]
[369033174,1751440238820,-460.0,0.00016438,2]
[369033176,1751440238830,-460.0,0.00016438,2]
[369033178,1751440238839,-460.0,0.00016438,2]
[369033180,1751440238848,-460.0,0.00016438,2]
[369033182,1751440238857,-460.0,0.00016438,2]
[369033184,1751440238867,-460.0,0.00016438,2]
[369033186,1751440238876,-460.0,0.00016438,2]
[369033188,1751440238885,-392.55186764,0.00016438,2]
[369033192,1751440238910,-67.44813236,0.00016438,2]
[369033194,1751440238920,-460.0,0.00016438,2]
[369033196,1751440238930,-35.33949874,0.00016438,2]
[369033276,1751440240504,-257.3663636,0.00016438,2]
[369033279,1751440240631,-167.29413766,0.00016438,2]
[369033280,1751440240640,-460.0,0.00016438,2]
[369033281,1751440240649,-350.93151557,0.00016438,2]
[369033282,1751440240661,-109.06848443,0.00016438,2]
[369033283,1751440240670,-460.0,0.00016438,2]
[369033284,1751440240679,-460.0,0.00016438,2]
[369033286,1751440240688,-470.22699188,0.00016438,2]
[369033288,1751440240698,-460.0,0.00016438,2]
[369033290,1751440240707,-460.0,0.00016438,2]
[369033292,1751440240717,-460.0,0.00016438,2]
[369033294,1751440240726,-460.0,0.00016438,2]
[369033296,1751440240735,-460.0,0.00016438,2]
[369033298,1751440240745,-460.0,0.00016438,2]
[369033300,1751440240754,-460.0,0.00016438,2]
[369033302,1751440240764,-460.0,0.00016438,2]
[369033304,1751440240773,-460.0,0.00016438,2]
[369033306,1751440240782,-606.08501309,0.00016438,2]
[369033308,1751440240791,-511.2843814,0.00016438,2]
[369033310,1751440240800,-500.0,0.00016438,2]
[369033312,1751440240810,-460.0,0.00016438,2]
[369033313,1751440240819,-460.0,0.00016438,2]
[369033314,1751440240828,-460.0,0.00016438,2]
[369033315,1751440240838,-460.0,0.00016438,2]
[369033316,1751440240847,-460.0,0.00016438,2]
[369033317,1751440240857,-460.0,0.00016438,2]
[369033318,1751440240866,-460.0,0.00016438,2]
[369033319,1751440240875,-460.0,0.00016438,2]
[369033321,1751440240884,-220.48350211,0.00016438,2]
[369033323,1751440240893,-460.0,0.00016438,2]
[369033325,1751440240902,-460.0,0.00016438,2]
[369033327,1751440240911,-460.0,0.00016438,2]
[369033329,1751440240920,-460.0,0.00016438,2]
[369033331,1751440240929,-460.0,0.00016438,2]
[369033333,1751440240939,-460.0,0.00016438,2]
[369033335,1751440240948,-460.0,0.00016438,2]
[369033337,1751440240957,-460.0,0.00016438,2]
[369033339,1751440240967,-430.0,0.00016438,2]
[369033341,1751440240976,-460.0,0.00016438,2]
[369033343,1751440240985,-460.0,0.00016438,2]
[369033345,1751440240995,-460.0,0.00016438,2]
[369033347,1751440241004,-460.0,0.00016438,2]
[369033349,1751440241013,-460.0,0.00016438,2]
[369033351,1751440241022,-500.0,0.00016438,2]
[369033353,1751440241032,-460.0,0.00016438,2]
[369033355,1751440241041,-521.42,0.00016438,2]
[369033357,1751440241050,-460.0,0.00016438,2]
[369033359,1751440241060,-460.0,0.00016438,2]
[369033361,1751440241070,-460.0,0.00016438,2]
[369033363,1751440241078,-495.16,0.00016438,2]
[369033365,1751440241088,-500.0,0.00016438,2]
[369033367,1751440241097,-460.0,0.00016438,2]
[369033369,1751440241107,-460.0,0.00016438,2]
[369033371,1751440241116,-460.0,0.00016438,2]
[369033373,1751440241126,-461.56289269,0.00016438,2]
[369033375,1751440241135,-460.0,0.00016438,2]
[369033377,1751440241144,-460.0,0.00016438,2]
[369033379,1751440241154,-460.0,0.00016438,2]
[369033381,1751440241163,-514.45,0.00016438,2]
[369033383,1751440241172,-460.0,0.00016438,2]
[369033385,1751440241182,-313.61328799,0.00016438,2]
[369033387,1751440241191,-460.0,0.00016438,2]
[369033389,1751440241200,-460.0,0.00016438,2]
[369033391,1751440241209,-460.0,0.00016438,2]
[369033393,1751440241219,-460.0,0.00016438,2]
[369033395,1751440241229,-460.0,0.00016438,2]
[369033397,1751440241239,-460.0,0.00016438,2]
[369033399,1751440241250,-460.0,0.00016438,2]
[369033401,1751440241259,-460.0,0.00016438,2]
[369033403,1751440241269,-361.01,0.00016438,2]
[369033406,1751440241278,-460.0,0.00016438,2]
[369033408,1751440241287,-460.0,0.00016438,2]
[369033410,1751440241296,-460.0,0.00016438,2]
[369033412,1751440241307,-1699.5,0.00016438,2]
[369033414,1751440241317,-1699.5,0.00016438,2]
[369033416,1751440241327,-1699.5,0.00016438,2]
[369033418,1751440241336,-1699.5,0.00016438,2]
[369033420,1751440241345,-1699.5,0.00016438,2]
[369033422,1751440241354,-462.39764,0.00016438,2]
[369033424,1751440241363,-464.20099809,0.00016438,2]
[369033426,1751440241372,-469.10159919,0.00016438,2]
[369033428,1751440241382,-460.0,0.00016438,2]
[369033430,1751440241393,-460.0,0.00016438,2]
[369033432,1751440241403,-460.0,0.00016438,2]
[369033434,1751440241413,-438.29862174,0.00016438,2]
[369033436,1751440241422,-460.0,0.00016438,2]
[369033438,1751440241433,-460.0,0.00016438,2]
[369033440,1751440241442,-460.0,0.00016438,2]
[369033442,1751440241451,-465.38985356,0.00016438,2]
[369033444,1751440241461,-460.0,0.00016438,2]
[369033446,1751440241470,-460.0,0.00016438,2]
[369033448,1751440241480,-460.0,0.00016438,2]
[369033450,1751440241489,-490.14951915,0.00016438,2]
[369033452,1751440241498,-460.0,0.00016438,2]
[369033454,1751440241508,-553.29254202,0.00016438,2]
[369033456,1751440241517,-460.0,0.00016438,2]
[369033458,1751440241526,-460.0,0.00016438,2]
[369033460,1751440241536,-460.0,0.00016438,2]
[369033462,1751440241545,-460.0,0.00016438,2]
[369033464,1751440241558,-460.0,0.00016438,2]
[369033466,1751440241576,-460.0,0.00016438,2]
[369033468,1751440241586,-460.0,0.00016438,2]
[369033470,1751440241595,-460.0,0.00016438,2]
[369033472,1751440241605,-460.0,0.00016438,2]
[369033474,1751440241614,-460.0,0.00016438,2]
[369033476,1751440241623,-277.3440546,0.00016438,2]
[369033477,1751440241633,-1211.85,0.00016438,2]
[369033480,1751440241643,-460.0,0.00016438,2]
[369033482,1751440241652,-460.0,0.00016438,2]
[369033484,1751440241662,-1022.94,0.00016438,2]
[369033486,1751440241672,-460.0,0.00016438,2]
[369033488,1751440241681,-460.0,0.00016438,2]
[369033490,1751440241691,-460.0,0.00016438,2]
[369033492,1751440241700,-874.61,0.00016438,2]
[369033493,1751440241709,-460.0,0.00016438,2]
[369033496,1751440241719,-460.0,0.00016438,2]
[369033498,1751440241729,-460.0,0.00016438,2]
[369033499,1751440241738,-460.0,0.00016438,2]
[369033502,1751440241748,-460.0,0.00016438,2]
[369033504,1751440241757,-460.0,0.00016438,2]
[369033505,1751440241767,-400.4375278,0.00016438,2]
[369033508,1751440241778,-460.0,0.00016438,2]
[369033510,1751440241788,-460.0,0.00016438,2]
[369033512,1751440241799,-460.0,0.00016438,2]
[369033514,1751440241808,-460.0,0.00016438,2]
[369033516,1751440241818,-2176.75,0.00016438,2]
[369033518,1751440241828,-460.0,0.00016438,2]
[369033520,1751440241837,-466.53006277,0.00016438,2]
[369033522,1751440241847,-694.38,0.00016438,2]
[369033524,1751440241856,-562.59,0.00016438,2]
[369033526,1751440241866,-460.0,0.00016438,2]
[369033528,1751440241876,-460.0,0.00016438,2]
[369033530,1751440241885,-460.0,0.00016438,2]
[369033532,1751440241895,-460.0,0.00016438,2]
[369033534,1751440241904,-616.46,0.00016438,2]
[369033536,1751440241913,-466.56868082,0.00016438,2]
[369033538,1751440241923,-460.0,0.00016438,2]
[369033540,1751440241933,-581.69,0.00016438,2]
[369033542,1751440241942,-460.0,0.00016438,2]
[369033544,1751440241951,-460.0,0.00016438,2]
[369033546,1751440241961,-460.0,0.00016438,2]
[369033548,1751440241970,-460.0,0.00016438,2]
[369033550,1751440241980,-460.0,0.00016438,2]
[369033552,1751440241989,-460.0,0.00016438,2]
[369033554,1751440241999,-460.0,0.00016438,2]
[369033556,1751440242009,-460.0,0.00016438,2]
[369033558,1751440242019,-460.0,0.00016438,2]
[369033582,1751440242240,-460.0,0.00016438,2]
[369033584,1751440242251,-542.99,0.00016438,2]
[369033586,1751440242260,-460.0,0.00016438,2]
[369033588,1751440242269,-460.0,0.00016438,2]
[369033590,1751440242279,-460.0,0.00016438,2]
[369033592,1751440242288,-460.0,0.00016438,2]
[369033594,1751440242297,-460.0,0.00016438,2]
[369033596,1751440242306,-460.0,0.00016438,2]
[369033598,1751440242316,-460.0,0.00016438,2]
[369033600,1751440242325,-460.0,0.00016438,2]
[369033602,1751440242334,-511.12879012,0.00016438,2]
[369033604,1751440242343,-619.5,0.00016438,2]
[369033606,1751440242352,-406.01254318,0.00016438,2]
[369033608,1751440242361,-460.0,0.00016438,2]
[369033610,1751440242370,-460.0,0.00016438,2]
[369033612,1751440242379,-500.0,0.00016438,2]
[369033614,1751440242389,-460.0,0.00016438,2]
[369033616,1751440242398,-500.0,0.00016438,2]
[369033618,1751440242408,-500.0,0.00016438,2]
[369033620,1751440242417,-500.0,0.00016438,2]
[369033622,1751440242426,-460.0,0.00016438,2]
[369033624,1751440242437,-500.0,0.00016438,2]
[369033626,1751440242446,-500.0,0.00016438,2]
[369033628,1751440242455,-491.33384198,0.00016438,2]
[369033630,1751440242465,-460.0,0.00016438,2]
[369033632,1751440242474,-460.0,0.00016438,2]
[369033634,1751440242483,-460.0,0.00016438,2]
[369033636,1751440242492,-460.0,0.00016438,2]
[369033638,1751440242501,-460.0,0.00016438,2]
[369033640,1751440242511,-1234.69,0.00016438,2]
[369033642,1751440242521,-507.4,0.00016438,2]
[369033644,1751440242530,-1282.33,0.00016438,2]
[369033646,1751440242539,-460.0,0.00016438,2]
[369033648,1751440242548,-586.76056324,0.00016438,2]
[369033650,1751440242561,-460.0,0.00016438,2]
[369033652,1751440242570,-504.72239128,0.00016438,2]
[369033730,1751440243303,-965.0423013,0.00016438,2]
[369033732,1751440243314,-268.95530742,0.00016438,2]
[369033734,1751440243324,-195.93050037,0.00016438,2]
[369033736,1751440243336,-264.06949963,0.00016438,2]
[369033738,1751440243345,-460.0,0.00016438,2]
[369033740,1751440243355,-460.0,0.00016438,2]
[369033742,1751440243364,-770.24,0.00016438,2]
[369033744,1751440243373,-1827.15391191,0.00016438,2]
[369034042,1751440246386,-1316.97367736,0.00016338,2]
[369034044,1751440246396,-182.0665432,0.00016338,2]
[369034047,1751440246406,-173.36608809,0.00016438,2]
[369034049,1751440246416,-443.76641053,0.00016438,2]
[369034051,1751440246426,-461.27021462,0.00016438,2]
[369034053,1751440246436,-460.0,0.00016438,2]
[369034054,1751440246445,-460.0,0.00016438,2]
[369034056,1751440246454,-460.0,0.00016438,2]
[369034058,1751440246464,-460.0,0.00016438,2]
[369034061,1751440246473,-460.0,0.00016438,2]
[369034063,1751440246482,-460.0,0.00016438,2]
[369034066,1751440246492,-460.0,0.00016438,2]
[369034069,1751440246501,-2880.43,0.00016438,2]
[369034072,1751440246510,-460.0,0.00016438,2]
[369034076,1751440246521,-460.0,0.00016438,2]
[369034079,1751440246530,-460.0,0.00016438,2]
[369034082,1751440246540,-460.0,0.00016438,2]
[369034084,1751440246549,-500.0,0.00016438,2]
[369034086,1751440246562,-493.0341426,0.00016438,2]
[369034088,1751440246572,-460.0,0.00016438,2]
[369034090,1751440246582,-460.0,0.00016438,2]
[369034092,1751440246591,-460.0,0.00016438,2]
[369034094,1751440246601,-460.0,0.00016438,2]
[369034096,1751440246611,-460.0,0.00016438,2]
[369034099,1751440246628,-2715.61115919,0.00016438,2]
[369035965,1751440578741,945.440325,0.00027397,120]
[369035975,1751440657363,10000.0,0.00015462,2]
[369035976,1751440725991,24900.0,0.00015387,2]
[369035977,1751440894714,-150.0,0.00016237,2]
[369035978,1751440894737,-93.30193095,0.00016249,2]
[369035979,1751440905709,-167.35419101,0.00016249,2]
[369035980,1751440911415,-155.65973445,0.00016149,2]
[369035981,1751440911436,-98.36885467,0.00016236,2]
[369035982,1751440924663,-57.29087978,0.00016236,2]
[369035983,1751440924685,-134.76160149,0.00016249,2]
[369035984,1751440926568,258.95853331,0.000161,2]
[369035985,1751440926942,-312.37144139,0.00016249,2]
[369035986,1751440933819,-208.5077479,0.00016249,2]
[369035987,1751440935855,-198.45857212,0.00016249,2]
[369035988,1751440938656,-179.17117521,0.00016249,2]
[369035989,1751440942336,-244.71187871,0.00016249,2]
[369035990,1751440942854,1038.29579813,0.000161,2]
[369035991,1751440944480,-300.07772397,0.00016249,2]
[369035992,1751440946536,-160.91480603,0.00016249,2]
[369035993,1751440950513,-256.02781412,0.00016249,2]
[369035994,1751440958009,1039.16138847,0.000161,2]
[369035995,1751440997593,483.326033,0.00013699,2]
[369035997,1751441008039,152.56952994,0.00016,2]
[369035998,1751441030838,-861.02,0.00016328,3]
[369035999,1751441030868,-1200.0,0.00016336,2]
[369036000,1751441030901,-300.0,0.00016336,2]
[369036001,1751441030931,-300.0,0.00016337,2]
[369036002,1751441030960,-300.0,0.00016337,2]
[369036003,1751441030990,-300.0,0.00016337,2]
[369036004,1751441031021,-1200.0,0.00016337,2]
[369036005,1751441031050,-504.04336621,0.00016337,2]
[369036006,1751441031258,-69.87326758,0.00016337,2]
[369036007,1751441031288,-1230.96098122,0.00016338,2]
[369036008,1751441031316,-364.1330864,0.00016338,2]
[369036009,1751441031346,-2127.68359339,0.00016338,2]
[369036010,1751441031799,-2024.5714104,0.00016338,2]
[369036011,1751441032001,-10000.0,0.00016338,2]
[369036012,1751441032027,-10000.0,0.00016338,2]
[369036013,1751441032047,-10000.0,0.00016338,2]
[369036014,1751441032078,-10000.0,0.00016338,2]
[369036015,1751441032111,-10000.0,0.00016338,2]
[369036016,1751441032137,-10000.0,0.00016338,2]
[369036017,1751441032152,-10000.0,0.00016338,2]
[369036018,1751441032171,-10000.0,0.00016338,2]
[369036019,1751441032195,-10000.0,0.00016338,2]
[369036020,1751441032215,-10000.0,0.00016338,2]
[369036021,1751441032250,-10000.0,0.00016338,2]
[369036022,1751441032404,-10000.0,0.00016338,2]
[369036023,1751441032546,-10000.0,0.00016338,2]
[369036024,1751441032678,-10000.0,0.00016338,2]
[369036025,1751441032827,-10000.0,0.00016338,2]
[369036026,1751441032942,-10000.0,0.00016338,2]
[369036027,1751441033076,-10000.0,0.00016338,2]
[369036028,1751441033207,-10000.0,0.00016338,2]
[369036029,1751441033307,-10000.0,0.00016338,2]
[369036030,1751441033425,-10000.0,0.00016338,2]
[369036031,1751441033537,-10000.0,0.00016338,2]
[369036032,1751441033669,-10000.0,0.00016338,2]
[369036033,1751441033822,-10000.0,0.00016338,2]
[369036034,1751441033952,-10000.0,0.00016338,2]
[369036035,1751441034066,-10000.0,0.00016338,2]
[369036036,1751441034222,-10000.0,0.00016338,2]
[369036037,1751441034351,-10000.0,0.00016338,2]
[369036038,1751441034468,-10000.0,0.00016338,2]
[369036039,1751441034587,-10000.0,0.00016338,2]
[369036040,1751441034739,-10000.0,0.00016338,2]
[369036041,1751441034836,-10000.0,0.00016338,2]
[369036042,1751441034955,-10000.0,0.00016338,2]
[369036043,1751441035081,-10000.0,0.00016338,2]
[369036044,1751441035207,-10000.0,0.00016338,2]
[369036045,1751441035322,-10000.0,0.00016338,2]
[369036046,1751441035441,-10000.0,0.00016338,2]
[369036047,1751441035567,-2024.5714104,0.00016338,2]
[369036048,1751441035596,-5950.8571792,0.00016338,2]
[369036049,1751441035670,-10000.0,0.00016338,2]
[369036051,1751441088274,3188.34,0.00027397,120]
[369036052,1751441124512,155.0022029,0.00016238,2]
[369036053,1751441128343,1726.45264126,0.0001833,6]
[369036054,1751441144828,5000.0,0.0001833,6]
[369036055,1751441153760,1238.52062518,0.0001833,6]
[369036056,1751441161323,-221.371501,0.000163,2]
[369036057,1751441161353,-249.0,0.00016337,2]
[369036058,1751441161382,-300.0,0.00016337,2]
[369036059,1751441161426,-1200.0,0.00016337,2]
[369036060,1751441161456,-300.0,0.00016337,2]
[369036061,1751441161487,-215.78002224,0.00016337,2]
[369036062,1751441161518,-155.0022029,0.00016338,2]
[369036063,1751441161766,-4717.69254772,0.00016338,2]
[369036064,1751441161833,5000.0,0.0001833,6]
[369036065,1751441161853,-10000.0,0.00016338,2]
[369036066,1751441161870,-3598.84312911,0.00016338,2]
[369036067,1751441161880,-6401.15687089,0.00016338,2]
[369036068,1751441161908,-10000.0,0.00016338,2]
[369036069,1751441161958,-10000.0,0.00016338,2]
[369036070,1751441162095,-10000.0,0.00016338,2]
[369036071,1751441162241,-10000.0,0.00016338,2]
[369036072,1751441162652,-300.0,0.00016336,2]
[369036073,1751441162689,-9400.0,0.00016338,2]
[369036074,1751441162795,-10000.0,0.00016338,2]
[369036075,1751441162923,-10000.0,0.00016338,2]
[369036076,1751441163082,-10000.0,0.00016338,2]
[369036077,1751441163554,-10000.0,0.00016338,2]
[369036078,1751441163630,-10000.0,0.00016338,2]
[369036079,1751441163792,-10000.0,0.00016338,2]
[369036080,1751441163914,-10000.0,0.00016338,2]
[369036081,1751441164063,-10000.0,0.00016338,2]
[369036082,1751441164201,-10000.0,0.00016338,2]
[369036083,1751441164334,-10000.0,0.00016338,2]
[369036084,1751441164453,-10000.0,0.00016338,2]
[369036085,1751441164583,-10000.0,0.00016338,2]
[369036086,1751441164715,-10000.0,0.00016338,2]
[369036087,1751441164825,-10000.0,0.00016338,2]
[369036088,1751441164947,-10000.0,0.00016338,2]
[369036089,1751441165067,-10000.0,0.00016338,2]
[369036090,1751441165180,-10000.0,0.00016338,2]
[369036091,1751441165315,-10000.0,0.00016338,2]
[369036092,1751441165443,-10000.0,0.00016338,2]
[369036093,1751441165564,-10000.0,0.00016338,2]
[369036094,1751441165685,-10000.0,0.00016338,2]
[369036095,1751441165954,-10000.0,0.00016338,2]
[369036096,1751441165980,-10000.0,0.00016338,2]
[369036097,1751441166100,-10000.0,0.00016338,2]
[369036098,1751441166226,-10000.0,0.00016338,2]
[369036099,1751441168759,-10000.0,0.00016338,2]
[369036100,1751441168884,-10000.0,0.00016338,2]
[369036101,1751441169017,-1200.0,0.00016337,2]
[369036102,1751441169056,-7600.0,0.00016338,2]
[369036103,1751441169132,-10000.0,0.00016338,2]
[369036104,1751441169255,-10000.0,0.00016338,2]
[369036105,1751441169411,-10000.0,0.00016338,2]
[369036106,1751441169528,-3401.15687089,0.00016338,2]
[369036107,1751441169552,-3197.68625822,0.00016338,2]
[369036108,1751441177652,-189.40858242,0.00016274,2]
[369036109,1751441179850,-274.59109521,0.00016274,2]
[369036110,1751441204762,1277.412856,0.00015583,2]
[369036111,1751441206893,-153.9326581,0.00016274,2]
[369036112,1751441248118,-203.63127913,0.00016238,2]
[369036113,1751441248141,-2741.04737309,0.00016274,2]
[369036114,1751441271426,12098.9622622,0.00015446,2]
[369036115,1751441293938,164.998935,0.00015446,2]
[369036116,1751441294128,164.998935,0.00015472,2]
[369036117,1751441294449,164.998935,0.00015498,2]
[369036118,1751441294653,164.998935,0.00015524,2]
[369036119,1751441297734,413.71793854,0.00010618,2]
[369036120,1751441299696,11343.76019288,0.000125,2]
[369036121,1751441311473,276.89000275,0.00014114,2]
[369036122,1751441313652,281.72247384,0.0001,2]
[369036123,1751441327869,6905.92996278,0.00015,2]
[369036124,1751441328263,266.06880087,0.0001515,20]
[369036125,1751441330314,16761.6024283,0.0001,2]
[369036126,1751441336839,186.10234015,0.00016061,2]
[369036131,1751441360765,3438.1307314,0.0002516,60]
[369036132,1751441366961,5000.0,0.000161,2]
[369036133,1751441368515,1062.88369789,0.00015848,2]
[369036195,1751441382895,5000.0,0.000161,2]
[369036196,1751441384755,150.01,0.00027397,120]
[369036197,1751441400863,3146.46807214,0.0001833,6]
[369036199,1751441411842,500.0,0.00027397,120]
[369036200,1751441428942,559.17,0.00027397,120]
[369036228,1751441432320,-203.63127912,0.00016173,2]
[369036229,1751441432331,-188.89614755,0.00016254,2]
[369036231,1751441432343,-157.61648136,0.00016254,2]
[369036232,1751441432352,-1099.01964703,0.00016273,2]
[369036236,1751441432420,-622.03086046,0.00016273,2]
[369036237,1751441432430,-269.41353741,0.00016273,2]
[369036238,1751441432439,-300.0,0.00016337,2]
[369036239,1751441432449,-300.0,0.00016337,2]
[369036240,1751441432459,-300.0,0.00016337,2]
[369036241,1751441432468,-1200.0,0.00016337,2]
[369036242,1751441432478,-1077.09085855,0.00016338,2]
[369036243,1751441432487,-131838.66151915,0.00016338,2]
[369036244,1751441432634,-19247.61032045,0.00016338,2]
[369036245,1751441432646,-1074.74166481,0.00016338,2]
[369036246,1751441432757,-24529.25132118,0.00016338,2]
[369036247,1751441432776,-51176.38401804,0.00016338,2]
[369036248,1751441432787,-460.0,0.00016338,2]
[369036249,1751441432798,-3422.21629627,0.00016338,2]
[369036255,1751441438281,-32663.1070068,0.00016338,2]
[369036256,1751441438291,-340.66642841,0.00016373,2]
[369036257,1751441438301,-500.36729744,0.00016373,2]
[369036258,1751441438310,-253.19118297,0.00016373,2]
[369036260,1751441438320,-500.0,0.00016373,2]
[369036261,1751441438330,-500.35967422,0.00016373,2]
[369036263,1751441438339,-500.0,0.00016373,2]
[369036265,1751441438348,-501.01515253,0.00016373,2]
[369036267,1751441438358,-500.0,0.00016373,2]
[369036268,1751441438367,-500.0,0.00016373,2]
[369036269,1751441438377,-500.0,0.00016373,2]
[369036270,1751441438387,-500.36121719,0.00016373,2]
[369036271,1751441438396,-500.22306365,0.00016373,2]
[369036272,1751441438405,-500.0,0.00016373,2]
[369036273,1751441438414,-318.86364768,0.00016373,2]
[369036274,1751441438424,-500.0,0.00016373,2]
[369036275,1751441438433,-462.93652303,0.00016373,2]
[369036276,1751441438443,-500.0,0.00016373,2]
[369036277,1751441438453,-257.09610255,0.00016373,2]
[369036278,1751441438462,-500.0,0.00016373,2]
[369036279,1751441438471,-500.0,0.00016373,2]
[369036280,1751441438481,-500.0,0.00016373,2]